[Event "EICC 2025"]
[Site "Eforie-Nord"]
[Date "2025.03.16"]
[Round "2.14"]
[White "Davtyan, Arsen"]
[Black "Quparadze, Giga"]
[Result "0-1"]
[Annotator "ChessBase"]
[ECO "B48"]
[WhiteElo "2391"]
[BlackElo "2543"]
[PlyCount "112"]
[EventDate "2025.03.14"]
[EventType "swiss"]
[EventCountry "ROU"]
[SourceTitle "playchess.com"]
[Source "ChessBase"]
[SourceQuality "1"]
[TimeControl "40/5400+30:1800+30"]

1. e4 {[%emt 0:00:22]} c5 {[%emt 0:00:03]} 2. Nf3 {[%emt 0:00:32]} e6 {[%emt 0:00:05]} 3. d4 {[%emt 0:00:06]} cxd4 {[%emt 0:00:06]} 4. Nxd4 {[%emt 0:00:05]} Nc6 {[%emt 0:00:25]} 5. Nc3 {[%emt 0:00:06]} Qc7 {[%emt 0:00:10]} 6. Be3 {[%emt 0:00:14]} a6 {[%emt 0:00:35]} 7. Qf3 {[%emt 0:00:07]} Nxd4 {[%emt 0:00:10]} 8. Bxd4 {[%emt 0:00:07]} Ne7 {[%emt 0:00:05]} 9. Qg3 {[%emt 0:03:43]} Qxg3 {[%emt 0:00:09]} 10. hxg3 {[%emt 0:00:03]} b5 {[%emt 0:00:21]} 11. O-O-O {[%emt 0:02:06]} Nc6 {[%emt 0:00:10]} 12. Be3 {[%emt 0:00:26]} Bb7 {[%emt 0:00:25]} 13. f3 {[%emt 0:00:46]} f6 {[%emt 0:01:06]} 14. g4 {[%emt 0:00:47]} Be7 {[%emt 0:00:06]} 15. Be2 {[%emt 0:06:32]} Ne5 {[%emt 0:00:19]} 16. Rh5 {[%emt 0:10:28]} h6 {[%emt 0:00:26]} 17. Kb1 {[%emt 0:18:38]} Bc6 {[%emt 0:02:57]} 18. a3 {[%emt 0:02:03]} Rc8 {[%emt 0:03:09]} 19. g3 {[%emt 0:03:52]} O-O {[%emt 0:01:24]} 20. f4 {[%emt 0:07:27]} Nf7 {[%emt 0:00:05]} 21. Bd3 {[%emt 0:11:03]} Rfe8 {[%emt 0:01:39]} 22. Bd4 {[%emt 0:04:19]} Bf8 {[%emt 0:04:23]} 23. Bb6 {[%emt 0:06:10]} Rb8 {[%emt 0:07:02]} 24. Ba5 {[%emt 0:00:18]} Bd6 {[%emt 0:01:28]} 25. Rh2 {[%emt 0:04:38]} Bc5 {[%emt 0:00:59]} 26. Rh5 {[%emt 0:03:29]} e5 {[%emt 0:01:31]} 27. Nd5 {[%emt 0:09:37]} Bf2 {[%emt 0:00:07]} 28. Rh3 {[%emt 0:02:18]} Bxd5 {[%emt 0:00:29]} 29. exd5 {[%emt 0:04:38]} e4 {[%emt 0:00:06]} 30. Be2 {[%emt 0:00:00]} e3 {[%emt 0:00:27]} 31. Be1 {[%emt 0:00:00]} Nd6 {[%emt 0:00:20]} 32. c3 {[%emt 0:00:17]} a5 {[%emt 0:00:48]} 33. Bd3 {[%emt 0:00:49]} b4 {[%emt 0:01:06]} 34. axb4 {[%emt 0:00:17]} axb4 {[%emt 0:00:10]} 35. c4 {[%emt 0:00:52]} Ne4 {[%emt 0:01:56]} 36. Bxe4 {[%emt 0:00:36]} Rxe4 {[%emt 0:00:10]} 37. b3 {[%emt 0:00:24]} Ra8 {[%emt 0:00:46]} 38. Kc2 {[%emt 0:00:43]} Ra2+ {[%emt 0:02:05]} 39. Kb1 {[%emt 0:00:04]} Ra3 {[%emt 0:00:09]} 40. Kc2 {[%emt 0:00:52]} e2 {[%emt 0:00:30]} 41. Rc1 {[%emt 0:00:42]} Bxe1 {[%emt 0:01:09]} 42. Rxe1 {[%emt 0:00:03]} Re3 {[%emt 0:00:03]} 43. Kd2 {[%emt 0:01:39]} Raxb3 {[%emt 0:01:07]} 44. Rxe2 {[%emt 0:00:13]} Rbd3+ {[%emt 0:00:13]} 45. Ke1 {[%emt 0:00:06]} Rf3 {[%emt 0:01:55]} 46. Re8+ {[%emt 0:03:04]} Kf7 {[%emt 0:00:06]} 47. Rb8 {[%emt 0:00:04]} b3 {[%emt 0:00:33]} 48. g5 {[%emt 0:03:07]} fxg5 {[%emt 0:01:14]} 49. fxg5 {[%emt 0:00:04]} hxg5 {[%emt 0:00:04]} 50. Rhh8 {[%emt 0:00:41]} Rxg3 {[%emt 0:00:57]} 51. Rhd8 {[%emt 0:02:34]} Ke7 {[%emt 0:01:59]} 52. Rg8 {[%emt 0:00:16]} Rg2 {[%emt 0:00:59]} 53. Rxg7+ {[%emt 0:01:42]} Kd6 {[%emt 0:01:53]} 54. c5+ {[%emt 0:05:28]} Kxc5 {[%emt 0:00:06]} 55. Rxd7 {[%emt 0:00:03]} Rh3 {[%emt 0:00:05]} 56. Kf1 {[%emt 0:01:08]} Ra2 {[%emt 0:00:08]} 0-1

[Event "EICC 2025"]
[Site "Eforie-Nord"]
[Date "2025.03.16"]
[Round "2.15"]
[White "Bluebaum, Matthias"]
[Black "Mosesov, Danyil"]
[Result "1-0"]
[Annotator "TA"]
[ECO "E43"]
[WhiteElo "2643"]
[BlackElo "2462"]
[PlyCount "111"]
[EventDate "2025.03.14"]
[EventType "swiss"]
[EventCountry "ROU"]
[SourceTitle "playchess.com"]
[Source "ChessBase"]
[SourceQuality "1"]
[TimeControl "40/5400+30:1800+30"]

{[%evp 13,111,16,16,15,9,5,2,-15,5,-2,28,33,14,18,17,0,4,4,35,15,75,37,44,41,37,53,65,37,35,42,36,37,44,37,86,85,95,79,143,124,133,126,134,121,115,92,92,99,134,117,125,127,147,143,200,209,220,220,572,538,779,759,591,549,549,549,549,550,550,489,549,549,640,640,633,626,617,600,5097,5097,4192,4134,4133,4133,1720,1689,977,943,904,902,854,812,1712,1683,1137,866,731,677,29975,29976]} 1. d4 {[%emt 0:00:04]} Nf6 {[%emt 0:00:07]} 2. c4 {[%emt 0:00:05]} e6 {[%emt 0:00:04]} 3. Nc3 {[%emt 0:00:14]} Bb4 {[%emt 0:00:19]} 4. Nf3 {[%emt 0:00:18]} b6 {[%emt 0:01:03]} 5. e3 {[%emt 0:00:11]} Bb7 {[%emt 0:00:08]} 6. Bd3 {[%emt 0:00:05]} O-O {[%emt 0:01:15]} 7. O-O {[%emt 0:00:09]} c5 {[%emt 0:00:22] outshines the older 7...d5.} 8. Re1 {[%emt 0:00:25] E43: Nimzo-Indian: Rubinstein: 4...b6.} d5 {[%emt 0:11:51]} 9. cxd5 {[%emt 0:00:11]} exd5 {[%emt 0:02:38]} 10. a3 {[%emt 0:01:13] The position is equal.} Bxc3 {[%emt 0:00:18]} 11. bxc3 {[%emt 0:00:02]} Nc6 $146 {[%emt 0:00:17]} ({Predecessor:} 11... c4 12. Bc2 Ne4 13. Bxe4 dxe4 14. Nd2 Bd5 15. a4 f5 16. Qe2 Qc7 17. a5 b5 {1-0 Amartuvshin,G (2394)-Song,Y (2308) Asian Continental op 18th 2019 (4)}) 12. dxc5 {[%emt 0:11:29]} bxc5 {[%emt 0:00:19]} 13. c4 {[%emt 0:00:17]} dxc4 {[%emt 0:07:29]} 14. Bxc4 {[%emt 0:01:21]} Na5 {[%emt 0:00:04]} 15. Ba2 {[%emt 0:07:29]} Bd5 {[%emt 0:06:06]} 16. Qa4 {[%emt 0:10:20] Bxd5 is in the air} Rb8 {[%emt 0:35:50]} (16... Bc6 $11 {remains equal.} 17. Qf4 Rb8) 17. Bxd5 {[%emt 0:10:11]} Nxd5 {[%emt 0:00:33]} 18. e4 {[%emt 0:00:56]} Nc3 {[%emt 0:07:26]} 19. Qc2 {[%emt 0:00:10]} Nb5 {[%emt 0:00:04]} 20. Bd2 {[%emt 0:15:22][%cal Oe1b1,Bc1d2,Bd2b4,Bb4c5][%mdl 32]} (20. Qxc5 Nb3 21. Qe5 Re8 $19 (21... Nxa1 22. Qxa1 Rb6 23. Bb2 $15)) 20... Nd4 {[%emt 0:05:31]} 21. Nxd4 {[%emt 0:00:09]} cxd4 {[%emt 0:00:03]} 22. Bb4 {[%emt 0:09:02][%cal Oc2a4]} Re8 {[%emt 0:00:21]} 23. Qa4 $1 $36 {[%emt 0:01:19][%mdl 2048] White has good play.} Nc4 {[%emt 0:03:03]} (23... Re5 $14) 24. Bc5 $1 $16 {[%emt 0:02:54]} (24. Qxa7 d3 $17) 24... Nd2 {[%emt 0:02:31][%cal Od2f3]} 25. Bxd4 {[%emt 0:05:40]} (25. Qxa7 Qg5 (25... Nxe4 26. Bxd4 Ra8 27. Qb6 $16) 26. Red1 Nb3 (26... Nxe4 27. Bxd4 Rbd8 28. Qa4 $16) 27. Bxd4 Nxa1 28. Rxa1 Rbc8 $19) 25... Re6 {[%emt 0:02:21]} ({Black should try} 25... Rc8) 26. Bc3 {[%emt 0:06:18][%cal Oa1d1]} (26. Qxa7 $6 Ra8 27. Qb7 Rb8 $11) 26... Rc8 {[%emt 0:08:13]} 27. Bxd2 {[%emt 0:05:09]} Qxd2 {[%emt 0:00:02]} 28. Rad1 {[%emt 0:03:08]} (28. Qxa7 Rxe4 29. Red1 Qf4 $16) 28... Qf4 {[%emt 0:00:23]} 29. Qxa7 {[%emt 0:01:40]} Rxe4 {[%emt 0:00:32]} 30. Qd7 {[%emt 0:02:45]} Rf8 {[%emt 0:01:14]} 31. Rxe4 {[%emt 0:01:57]} Qxe4 {[%emt 0:00:03][%mdl 4096] Endgame KQR-KQR. White is a pawn up.} 32. a4 {[%emt 0:00:20]} h5 {[%emt 0:01:37]} 33. a5 {[%emt 0:00:15]} Re8 {[%emt 0:01:40]} (33... Qe2 $16 34. h3 Ra8) 34. h3 $18 {[%emt 0:00:17]} (34. a6 $2 Qe1+ 35. Rxe1 Rxe1#) 34... Re6 {[%emt 0:01:20]} 35. a6 {[%emt 0:02:15]} Rg6 $2 {[%emt 0:00:55] [#]} (35... Kh7 36. Qb5 (36. Qxf7 Rg6 $18) 36... Re5) 36. Qb7 $1 {[%emt 0:00:21]} Qe2 {[%emt 0:00:30]} 37. Rd8+ {[%emt 0:04:01]} Kh7 {[%emt 0:00:05]} 38. a7 {[%emt 0:00:02] Active counter play!} Qe1+ {[%emt 0:01:06]} 39. Kh2 {[%emt 0:00:01]} Qxf2 {[%emt 0:00:36] [#]} 40. Rh8+ $3 {[%emt 0:01:47][%mdl 512]} Kxh8 {[%emt 0:00:01]} 41. a8=Q+ {[%emt 0:30:07]} (41. a8=B $2 {too greedy.} Qg3+ 42. Kg1 Re6 (42... Qxh3 $2 43. Qxf7 Qe3+ 44. Qf2 $19) 43. Qc8+ Kh7 $19) 41... Kh7 {[%emt 0:30:03]} 42. Qf3 {[%emt 0:00:37] Repels Qg3+} Qc5 {[%emt 0:01:27]} 43. Qxf7 {[%emt 0:00:00]} Qe5+ {[%emt 0:00:00]} 44. Kg1 {[%emt 0:00:00]} Qe3+ {[%emt 0:00:00]} 45. Qf2 {[%emt 0:00:00]} Qxh3 {[%emt 0:00:00]} 46. Qd5 {[%emt 0:00:00] Inhibits Qd3.} Qg4 {[%emt 0:00:00]} 47. Qf8 {[%emt 0:00:00] Qfg8+ would kill now.} Re6 {[%emt 0:00:00]} 48. Qff5+ {[%emt 0:00:00]} Qxf5 {[%emt 0:00:00]} 49. Qxf5+ {[%emt 0:00:00] KQ-KR} Rg6 {[%emt 0:00:00]} 50. Qxh5+ {[%emt 0:00:00]} Rh6 {[%emt 0:00:00]} 51. Qf5+ {[%emt 0:00:00]} Kg8 {[%emt 0:00:00]} 52. g4 {[%emt 0:00:00][%cal Bg2g4,Bg4g5][%mdl 32] aiming for g5.} Rf6 {[%emt 0:00:00]} 53. Qd5+ {[%emt 0:00:00]} Kh7 {[%emt 0:00:00]} 54. Kg2 {[%emt 0:00:00]} Rf8 {[%emt 0:00:00]} 55. Qe4+ {[%emt 0:00:00]} Kg8 {[%emt 0:00:00]} 56. g5 {[%emt 0:00:00] Weighted Error Value: White=0.06 (flawless) /Black=0.51  Mistake:       	---       	Black=5      Inaccurate:     	White=2     	Black=4      OK:         	White=16    	Black=9      Best:        	---       	Black=3      Strong:       	White=3     	---} 1-0

[Event "EICC 2025"]
[Site "Eforie-Nord"]
[Date "2025.03.16"]
[Round "2.15"]
[White "Kanyamarala, Tarun"]
[Black "Can, Isik"]
[Result "0-1"]
[Annotator "ChessBase"]
[ECO "D94"]
[WhiteElo "2389"]
[BlackElo "2539"]
[PlyCount "88"]
[EventDate "2025.03.14"]
[EventType "swiss"]
[EventCountry "ROU"]
[SourceTitle "playchess.com"]
[Source "ChessBase"]
[SourceQuality "1"]
[TimeControl "40/5400+30:1800+30"]

1. d4 {[%emt 0:00:03]} Nf6 {[%emt 0:05:01]} 2. c4 {[%emt 0:00:09]} g6 {[%emt 0:00:05]} 3. Nc3 {[%emt 0:00:38]} d5 {[%emt 0:00:10]} 4. Nf3 {[%emt 0:02:34]} Bg7 {[%emt 0:00:22]} 5. e3 {[%emt 0:03:24]} O-O {[%emt 0:02:48]} 6. Bd2 {[%emt 0:03:04]} b6 {[%emt 0:17:39]} 7. cxd5 {[%emt 0:03:23]} Nxd5 {[%emt 0:00:51]} 8. Bc4 {[%emt 0:00:33]} Bb7 {[%emt 0:03:50]} 9. O-O {[%emt 0:03:10]} e6 {[%emt 0:02:58]} 10. Qe2 {[%emt 0:02:04]} c5 {[%emt 0:06:26]} 11. Rfd1 {[%emt 0:12:41]} Nd7 {[%emt 0:12:29]} 12. e4 {[%emt 0:12:38]} Nxc3 {[%emt 0:02:18]} 13. bxc3 {[%emt 0:08:21]} Nf6 {[%emt 0:02:31]} 14. Bd3 {[%emt 0:01:38]} Qc7 {[%emt 0:02:32]} 15. a4 {[%emt 0:02:35]} Rfd8 {[%emt 0:01:59]} 16. Bg5 {[%emt 0:03:39]} Rdc8 {[%emt 0:05:27]} 17. Ra2 {[%emt 0:15:19]} h6 {[%emt 0:02:41]} 18. Bd2 {[%emt 0:00:38]} Rd8 {[%emt 0:08:50]} 19. a5 {[%emt 0:07:53]} Rab8 {[%emt 0:02:01]} 20. axb6 {[%emt 0:04:43]} axb6 {[%emt 0:00:09]} 21. Rb1 {[%emt 0:02:49]} Bc6 {[%emt 0:06:55]} 22. Rab2 {[%emt 0:02:01]} Nd7 {[%emt 0:03:17]} 23. Be3 {[%emt 0:01:31]} Nf6 {[%emt 0:01:20]} 24. Nd2 {[%emt 0:01:19]} b5 {[%emt 0:00:55]} 25. g3 {[%emt 0:05:05]} c4 {[%emt 0:04:00]} 26. Bc2 {[%emt 0:00:17]} e5 {[%emt 0:00:13]} 27. d5 {[%emt 0:00:54]} Bd7 {[%emt 0:00:26]} 28. f3 {[%emt 0:00:34]} Ra8 {[%emt 0:02:53]} 29. Rxb5 {[%emt 0:00:42]} Bxb5 30. Rxb5 {[%emt 0:00:01]} Nd7 {[%emt 0:03:44]} 31. Qxc4 {[%emt 0:01:02]} Qd6 {[%emt 0:00:34]} 32. Qb3 {[%emt 0:00:33]} Rdc8 {[%emt 0:00:22]} 33. Nc4 {[%emt 0:00:16]} Ra1+ {[%emt 0:00:34]} 34. Kg2 {[%emt 0:00:07]} Qa6 {[%emt 0:00:01]} 35. Bd3 {[%emt 0:00:42]} Bf8 {[%emt 0:00:06]} 36. Nb2 {[%emt 0:00:50]} Ra3 {[%emt 0:00:32]} 37. Qd1 {[%emt 0:00:21]} Raxc3 {[%emt 0:00:13]} 38. Bf2 {[%emt 0:00:42]} Qa3 {[%emt 0:01:04]} 39. Be1 {[%emt 0:00:30]} Rc1 {[%emt 0:00:30]} 40. Qe2 {[%emt 0:00:21]} Nc5 {[%emt 0:01:09]} 41. Ra5 {[%emt 0:17:13]} Qxb2 {[%emt 0:09:37]} 42. Qxb2 {[%emt 0:00:18]} Nxd3 {[%emt 0:00:03]} 43. Qb7 {[%emt 0:02:19]} Nxe1+ {[%emt 0:00:06]} 44. Kh3 {[%emt 0:03:19]} Nxf3 {[%emt 0:00:43]} 0-1

[Event "EICC 2025"]
[Site "Eforie-Nord"]
[Date "2025.03.16"]
[Round "2.16"]
[White "Horvath, Dominik"]
[Black "Papasimakopoulos, Alexandros"]
[Result "1-0"]
[Annotator "ChessBase"]
[ECO "E11"]
[WhiteElo "2538"]
[BlackElo "2387"]
[PlyCount "65"]
[EventDate "2025.03.14"]
[EventType "swiss"]
[EventCountry "ROU"]
[SourceTitle "playchess.com"]
[Source "ChessBase"]
[SourceQuality "1"]
[TimeControl "40/5400+30:1800+30"]

1. d4 {[%emt 0:00:03]} d5 {[%emt 0:00:08]} 2. c4 {[%emt 0:00:27]} e6 {[%emt 0:00:06]} 3. Nf3 {[%emt 0:00:04]} Nf6 {[%emt 0:00:12]} 4. g3 {[%emt 0:00:08]} Bb4+ {[%emt 0:02:04]} 5. Bd2 {[%emt 0:00:06]} Be7 {[%emt 0:00:13]} 6. Bg2 {[%emt 0:00:27]} O-O {[%emt 0:00:21]} 7. Qc2 {[%emt 0:00:06]} Ne4 {[%emt 0:01:59]} 8. Bf4 {[%emt 0:00:22]} c6 {[%emt 0:02:52]} 9. h4 {[%emt 0:00:23]} f5 {[%emt 0:04:26]} 10. Nc3 {[%emt 0:01:27]} a5 {[%emt 0:04:44]} 11. O-O {[%emt 0:00:24]} Nd7 {[%emt 0:04:44]} 12. Nxe4 {[%emt 0:19:55]} fxe4 {[%emt 0:15:16]} 13. Ng5 {[%emt 0:00:14]} Rf6 {[%emt 0:04:48]} 14. f3 {[%emt 0:02:56]} h6 {[%emt 0:00:09]} 15. Nh3 {[%emt 0:01:07]} exf3 {[%emt 0:00:25]} 16. Rxf3 {[%emt 0:04:15]} Qb6 {[%emt 0:03:49]} 17. c5 {[%emt 0:05:54]} Qb4 {[%emt 0:00:27]} 18. Rd1 {[%emt 0:13:18]} a4 {[%emt 0:06:24]} 19. a3 {[%emt 0:05:42]} Qa5 {[%emt 0:01:40]} 20. Nf2 {[%emt 0:05:39]} b6 {[%emt 0:06:21]} 21. Ng4 {[%emt 0:03:04]} bxc5 {[%emt 0:02:07]} 22. Nxf6+ {[%emt 0:00:05]} Bxf6 {[%emt 0:00:24]} 23. Bh3 {[%emt 0:01:03]} Nf8 {[%emt 0:04:36]} 24. Bd6 {[%emt 0:12:16]} cxd4 {[%emt 0:01:30]} 25. Bxf8 {[%emt 0:01:53]} Kxf8 {[%emt 0:01:03]} 26. Qxc6 {[%emt 0:00:05]} Qa6 {[%emt 0:00:37]} 27. Qc7 {[%emt 0:05:46]} Ke8 {[%emt 0:11:10]} 28. e3 {[%emt 0:07:17]} dxe3 {[%emt 0:05:20]} 29. Rxe3 {[%emt 0:01:04]} Kf8 {[%emt 0:02:29]} 30. Rde1 {[%emt 0:04:49]} e5 {[%emt 0:00:42]} 31. Qc5+ {[%emt 0:00:23]} Be7 {[%emt 0:01:09]} 32. Rf3+ {[%emt 0:00:15]} Ke8 {[%emt 0:00:01]} 33. Rxe5 {[%emt 0:01:03]} 1-0

[Event "EICC 2025"]
[Site "Eforie-Nord"]
[Date "2025.03.16"]
[Round "2.16"]
[White "Razafindratsima, Timothe"]
[Black "Predke, Alexandr"]
[Result "1/2-1/2"]
[Annotator "TA"]
[ECO "E06"]
[WhiteElo "2465"]
[BlackElo "2640"]
[PlyCount "182"]
[EventDate "2025.03.14"]
[EventType "swiss"]
[EventCountry "ROU"]
[SourceTitle "playchess.com"]
[Source "ChessBase"]
[SourceQuality "1"]
[TimeControl "40/5400+30:1800+30"]

{[%evp 11,182,8,29,22,35,33,31,26,34,33,29,31,27,8,16,0,0,-2,0,0,0,-27,-15,-78,-81,-79,-42,-56,6,0,0,8,-2,0,0,-8,0,-18,-16,-23,-31,-30,-25,-30,-29,-23,-21,-24,-17,-19,-23,-25,0,0,0,0,0,0,0,-86,0,-29,-27,-93,-93,-94,-62,-83,-57,-87,-87,-95,-91,-86,-79,-92,-25,-52,-42,-66,-50,-165,-160,-143,-83,-275,-257,-336,-299,-386,-355,-384,-371,-390,0,-352,-369,-328,-306,-310,-295,-333,-290,-245,-114,-121,-59,-51,-17,-17,-13,-17,-17,-29,-8,-10,-8,-8,-8,-8,-8,-8,-8,-60,-60,-60,-60,-60,-17,-17,-17,-17,-17,-17,-17,-17,-17,-17,-17,-17,-17,-17,-17,-17,0,-17,-17,-17,-17,-60,-60,-60,0,-17,-17,-17,-14,-14,0,-17,0,-17,0,0,0,0,0,0,0,0,0,0,0]} 1. d4 {[%emt 0:00:07]} Nf6 {[%emt 0:00:56]} 2. c4 {[%emt 0:00:13]} e6 {[%emt 0:00:10]} 3. Nf3 {[%emt 0:00:11]} d5 {[%emt 0:00:08]} 4. g3 {[%emt 0:00:30]} Be7 {[%emt 0:00:19]} 5. Bg2 {[%emt 0:00:15]} O-O {[%emt 0:00:07]} 6. O-O {[%emt 0:00:08]} a5 {[%emt 0:01:27]} 7. Qc2 {[%emt 0:01:43] E06: Closed Catalan: Early deviations.} Nc6 {[%emt 0:01:15]} 8. a3 {[%emt 0:03:32]} dxc4 {[%emt 0:01:36]} 9. Qxc4 {[%emt 0:04:14] White is slightly better.} a4 {[%emt 0:00:15]} 10. Nc3 {[%emt 0:01:17][%cal Of1d1]} Bd7 $1 {[%emt 0:00:35]} 11. Bf4 {[%emt 0:05:42][%cal Oe2e4]} (11. Nxa4 $2 b5 (11... Nxd4 12. Nc3 $11) 12. Qd3 (12. Qxb5 $2 Nxd4 13. Qd3 Nxf3+ 14. Qxf3 Rxa4 $19) 12... bxa4 $19 (12... Rxa4 $2 13. b3 $19)) 11... Na5 {[%emt 0:10:16]} 12. Qd3 {[%emt 0:17:06]} (12. Qxc7 Qxc7 13. Bxc7 Nb3 14. Rad1) 12... Nd5 {[%emt 0:09:51]} 13. Ne5 {[%emt 0:06:57]} Be8 {[%emt 0:02:29]} 14. Be4 $146 {[%emt 0:11:48]} (14. Rfd1 f6 15. Nc4 Bg6 16. Be4 Nxc3 17. bxc3 Bxe4 18. Qxe4 Qd5 19. Qxd5 exd5 20. Nxa5 Rxa5 21. Bxc7 {½-½ Raja,R (2395)-Ghosh,D (2547) IND-ch Blitz 2024 (9)}) 14... Nf6 {[%emt 0:03:24]} 15. Bf3 {[%emt 0:02:37]} Nd5 {[%emt 0:00:06]} 16. Be4 {[%emt 0:00:14] Threatens to win with Nxd5.} Kh8 {[%emt 0:14:42]} 17. Rad1 {[%emt 0:10:04]} (17. Bxh7 Nxf4 18. gxf4 g6 $17) (17. Nxd5 $11 exd5 18. Bxh7) 17... f6 $17 {[%emt 0:10:32]} 18. Nc4 {[%emt 0:00:23]} Nxc4 {[%emt 0:04:17]} 19. Qxc4 {[%emt 0:00:13]} Bc6 {[%emt 0:00:27]} (19... Nxf4 $15 20. gxf4 Qc8) 20. Bg2 {[%emt 0:05:30]} Nxc3 {[%emt 0:01:21]} 21. Qxc3 {[%emt 0:00:29]} Bxg2 {[%emt 0:00:23]} 22. Kxg2 {[%emt 0:00:04]} Qd5+ {[%emt 0:05:28]} 23. Qf3 {[%emt 0:09:05]} c6 {[%emt 0:01:58]} 24. Rd3 {[%emt 0:04:01]} Rfd8 {[%emt 0:02:38]} 25. Rc1 {[%emt 0:03:38]} Qxf3+ {[%emt 0:02:16]} 26. Kxf3 {[%emt 0:00:21]} Kg8 {[%emt 0:01:33]} 27. Bd2 {[%emt 0:01:22]} Rd5 {[%emt 0:05:17]} 28. Rc4 {[%emt 0:02:39]} f5 {[%emt 0:01:39]} 29. h4 {[%emt 0:02:18]} Kf7 {[%emt 0:01:00]} 30. e4 {[%emt 0:01:06]} fxe4+ {[%emt 0:03:01]} 31. Kxe4 {[%emt 0:00:05]} Bf6 {[%emt 0:04:44]} 32. Bf4 {[%emt 0:02:05]} Ra6 {[%emt 0:03:46]} 33. Be5 {[%emt 0:01:31]} Rb6 {[%emt 0:07:13]} 34. Bxf6 {[%emt 0:01:19]} gxf6 $11 {[%emt 0:00:20][%mdl 4096] Endgame KRR-KRR} 35. Rd2 {[%emt 0:00:10]} (35. Rxa4 $11 Rxb2 36. Rb4) 35... Ra5 {[%emt 0:00:31]} (35... Rb3 $1 $17 36. Rc3 (36. Rxa4 f5+ 37. Kf4 Kf6 $19) 36... Rdb5 37. Rxb3 Rxb3) 36. Kd3 {[%emt 0:00:50]} Rb3+ {[%emt 0:00:04]} 37. Rc3 {[%emt 0:02:24]} (37. Kc2 $11) 37... Rab5 $17 {[%emt 0:00:04]} 38. Rxb3 {[%emt 0:01:19]} Rxb3+ {[%emt 0:00:03] KR-KR} 39. Ke4 {[%emt 0:00:07]} f5+ $1 {[%emt 0:01:49]} 40. Kf4 {[%emt 0:02:10]} Kf6 {[%emt 0:00:05]} 41. g4 {[%emt 0:14:39]} fxg4 {[%emt 0:04:11]} 42. Kxg4 {[%emt 0:02:02]} Rb5 $1 {[%emt 0:00:09]} 43. Rc2 {[%emt 0:06:32]} Ke7 {[%emt 0:13:14]} (43... Rd5 $1 $17 44. Rc4 b5) 44. h5 {[%emt 0:03:04]} Kd6 {[%emt 0:04:29]} 45. f4 {[%emt 0:05:37]} Rd5 {[%emt 0:00:22][%cal Oh7h6]} 46. h6 {[%emt 0:01:02]} (46. Rg2 $15) 46... Rxd4 $19 {[%emt 0:00:19]} 47. Re2 {[%emt 0:00:43] [#]} Rd5 {[%emt 0:01:07]} (47... Rd1 $142 $1 48. Kg5 Rg1+ 49. Kf6 Rg6+ 50. Kf7 Rxh6) 48. Re4 $2 {[%emt 0:00:31]} (48. Rg2 $17) 48... b5 {[%emt 0:00:12]} 49. Re3 {[%emt 0:00:13]} c5 {[%emt 0:01:24]} 50. Kh4 {[%emt 0:00:48]} Rf5 {[%emt 0:01:03]} 51. Kg4 {[%emt 0:00:15]} Rf6 {[%emt 0:00:28]} 52. Rh3 {[%emt 0:00:10]} Rf5 {[%emt 0:03:21]} (52... Kd5 $19 53. Rh1 b4 54. Rd1+ Kc4 55. axb4 cxb4) 53. Rg3 $2 {[%emt 0:00:04][%mdl 8192]} (53. Re3 $1 $11) 53... b4 {[%emt 0:01:41]} 54. Kf3 {[%emt 0:01:24]} bxa3 {[%emt 0:01:03]} 55. bxa3 {[%emt 0:00:04]} Rh5 {[%emt 0:00:04]} 56. Ke4 {[%emt 0:00:13]} Rxh6 {[%emt 0:05:47]} 57. Rd3+ {[%emt 0:00:04]} Ke7 {[%emt 0:00:03]} (57... Kc6 $19 58. Ke5 Kb5) 58. Rc3 $17 {[%emt 0:00:29] [#]} Rh5 {[%emt 0:00:31]} (58... Kd7 $1 $17 {and ...Kc6 would now be decisive} 59. Rxc5 Rh3) 59. Rc4 $15 {[%emt 0:00:11]} Rh3 {[%emt 0:01:21]} 60. Rxa4 {[%emt 0:00:13]} h5 {[%emt 0:00:42]} 61. Ra7+ {[%emt 0:01:07]} Kf6 {[%emt 0:00:03]} 62. Rc7 {[%emt 0:00:39]} Rc3 {[%emt 0:01:03][%cal Oh5h4]} 63. a4 {[%emt 0:00:33][%cal Ba3a4,Ba4a5][%mdl 32]} h4 {[%emt 0:00:27] Threatening ...Rc4+.} (63... Rc4+ 64. Kf3 e5 65. fxe5+ Kxe5 66. Ke3 Kd5) 64. a5 {[%emt 0:00:13]} h3 {[%emt 0:00:20]} (64... Rc4+ 65. Kf3 e5 66. fxe5+ Kxe5 67. a6 Rc3+) 65. a6 {[%emt 0:00:57]} Kg6 {[%emt 0:00:53]} 66. Rc8 $1 {[%emt 0:00:20]} Ra3 {[%emt 0:00:13]} (66... h2 $5 67. Rh8 $8 Rc2 $11) 67. Rxc5 {[%emt 0:01:25]} ({White should play} 67. Rh8 $1 $11) 67... h2 $1 {[%emt 0:00:42]} ({But not} 67... Rxa6 68. Rg5+ Kf6 69. Kf3 $11) 68. Rc1 {[%emt 0:00:09]} Rxa6 {[%emt 0:00:18]} 69. Rh1 $1 {[%emt 0:00:52]} Ra2 {[%emt 0:00:19]} 70. Kf3 {[%emt 0:00:07]} Kf5 {[%emt 0:00:17]} 71. Re1 {[%emt 0:00:23]} Kf6 {[%emt 0:01:16]} 72. Kg3 {[%emt 0:00:32]} Re2 {[%emt 0:00:02]} 73. Rh1 {[%emt 0:00:02]} Kf5 {[%emt 0:00:11]} 74. Kf3 {[%emt 0:00:05]} Rb2 {[%emt 0:00:44]} 75. Re1 {[%emt 0:00:03]} Kf6 {[%emt 0:00:19]} 76. Kg3 {[%emt 0:00:08]} Rc2 {[%emt 0:00:05]} (76... Rb4 77. Kxh2 Rxf4 78. Kg3 e5) 77. Ra1 {[%emt 0:02:05]} Rb2 {[%emt 0:00:26]} 78. Re1 {[%emt 0:00:31]} Rd2 {[%emt 0:00:09]} (78... Rb4 79. Kxh2 Rxf4 80. Kg3 e5) 79. Ra1 {[%emt 0:01:00]} Kf5 {[%emt 0:01:17]} 80. Ra5+ {[%emt 0:00:08]} Rd5 {[%emt 0:00:03]} 81. Ra1 {[%emt 0:00:03][%cal Oa1e1]} Rd2 {[%emt 0:01:12]} (81... Rd3+ {simplifies} 82. Kxh2 Kxf4 83. Kg2 e5) 82. Ra5+ {[%emt 0:00:04] The position is equal.} Kg6 {[%emt 0:00:02]} 83. Ra1 {[%emt 0:00:10]} Re2 {[%emt 0:01:10]} 84. Rh1 {[%emt 0:00:14]} Kf5 {[%emt 0:00:39]} 85. Kf3 {[%emt 0:00:03] Wards off Re3+} Ra2 {[%emt 0:00:03]} 86. Re1 $1 {[%emt 0:00:26]} Ra8 {[%emt 0:00:58]} 87. Re5+ {[%emt 0:00:42]} Kf6 {[%emt 0:00:04]} 88. Rh5 {[%emt 0:00:49] Wards off h1Q+} Ra3+ {[%emt 0:00:03]} 89. Kg4 {[%emt 0:01:24]} Ra2 {[%emt 0:00:04]} 90. Kg3 {[%emt 0:00:04]} Kg6 {[%emt 0:00:15]} 91. Rxh2 {[%emt 0:00:12]} Rxh2 {[%emt 0:00:04] Black had all chances to win.   Weighted Error Value: White=0.32/Black=0.19 (very precise)   Loses game:     	White=2     	---        Missed win:     	---       	Black=1      Mistake:       	White=5     	Black=6      Inaccurate:     	White=5     	Black=5      OK:         	White=28    	Black=23     Best:        	White=12    	Black=9      Strong:       	White=3     	Black=4} 1/2-1/2